fUSD/lending_fUSD_20250426
["ID","MTS","AMOUNT","RATE_DAILY","PERIOD"]
[359066313,1745688646219,-400.0,0.00019885,2]
[359066314,1745688646229,-400.0,0.00019885,2]
[359066315,1745688646238,-437.98246931,0.00019885,2]
[359066316,1745688646248,-490.2,0.00019885,2]
[359066317,1745688646257,-400.0,0.00019885,2]
[359066318,1745688646266,-737.11,0.00019885,2]
[359066319,1745688646275,-400.0,0.00019885,2]
[359066320,1745688646285,-443.62640003,0.00019885,2]
[359066321,1745688646295,-400.0,0.00019885,2]
[359066322,1745688646304,-400.0,0.00019885,2]
[359066323,1745688646314,-575.55,0.00019885,2]
[359066324,1745688646324,-424.83,0.00019885,2]
[359066325,1745688646333,-200.0,0.00019885,2]
[359066326,1745688646343,-400.0,0.00019885,2]
[359066327,1745688646353,-478.14,0.00019885,2]
[359066328,1745688646363,-400.0,0.00019885,2]
[359066329,1745688646373,-400.0,0.00019885,2]
[359066330,1745688646383,-400.0,0.00019885,2]
[359066331,1745688646393,-400.0,0.00019885,2]
[359066332,1745688646402,-400.0,0.00019885,2]
[359066333,1745688646412,-400.0,0.00019885,2]
[359066334,1745688646421,-635.57,0.00019885,2]
[359066335,1745688646432,-400.0,0.00019885,2]
[359066336,1745688646442,-400.0,0.00019885,2]
[359066337,1745688646452,-400.0,0.00019885,2]
[359066338,1745688646461,-429.77,0.00019885,2]
[359066339,1745688646471,-400.0,0.00019885,2]
[359066340,1745688646481,-400.0,0.00019885,2]
[359066341,1745688646491,-400.0,0.00019885,2]
[359066342,1745688646502,-530.37,0.00019885,2]
[359066343,1745688646511,-400.0,0.00019885,2]
[359066344,1745688646521,-400.0,0.00019885,2]
[359066345,1745688646530,-200.0,0.00019885,2]
[359066346,1745688646540,-524.04,0.00019885,2]
[359066347,1745688646550,-400.0,0.00019885,2]
[359066348,1745688646559,-400.0,0.00019885,2]
[359066349,1745688646569,-400.0,0.00019885,2]
[359066350,1745688646579,-400.0,0.00019885,2]
[359066351,1745688646588,-883.25,0.00019885,2]
[359066352,1745688646598,-400.0,0.00019885,2]
[359066353,1745688646608,-400.0,0.00019885,2]
[359066354,1745688646618,-150.0,0.00019885,2]
[359066356,1745688646628,-400.0,0.00019885,2]
[359066359,1745688646638,-2743.0,0.00019885,2]
[359066361,1745688646648,-449.51,0.00019885,2]
[359066363,1745688646657,-400.0,0.00019885,2]
[359066364,1745688646666,-791.79,0.00019885,2]
[359066365,1745688646676,-400.0,0.00019885,2]
[359066366,1745688646686,-400.0,0.00019885,2]
[359066367,1745688646695,-400.0,0.00019885,2]
[359066368,1745688646704,-500.0,0.00019885,2]
[359066370,1745688646713,-500.0,0.00019885,2]
[359066372,1745688646723,-386.85366755,0.00019885,2]
[359066373,1745688646732,-400.0,0.00019885,2]
[359066374,1745688646741,-150.0,0.00019885,2]
[359066375,1745688646749,-676.89,0.00019885,2]
[359066376,1745688646759,-400.0,0.00019885,2]
[359066377,1745688646768,-150.0,0.00019885,2]
[359066378,1745688646777,-400.0,0.00019885,2]
[359066379,1745688646785,-500.0,0.00019885,2]
[359066380,1745688646794,-400.0,0.00019885,2]
[359066381,1745688646803,-500.0,0.00019885,2]
[359066382,1745688646812,-150.0,0.00019885,2]
[359066383,1745688646822,-150.0,0.00019885,2]
[359066384,1745688646831,-400.0,0.00019885,2]
[359066385,1745688646840,-500.0,0.00019885,2]
[359066386,1745688646849,-277.0773,0.00019885,2]
[359066387,1745688646858,-400.0,0.00019885,2]
[359066388,1745688646867,-400.0,0.00019885,2]
[359066389,1745688646877,-440.36,0.00019885,2]
[359066390,1745688646886,-435.81,0.00019885,2]
[359066391,1745688646895,-400.0,0.00019885,2]
[359066392,1745688646904,-417.9,0.00019885,2]
[359066393,1745688646915,-651.17,0.00019885,2]
[359066394,1745688646926,-811.07,0.00019885,2]
[359066395,1745688646936,-400.0,0.00019885,2]
[359066396,1745688646945,-400.0,0.00019885,2]
[359066397,1745688646954,-300.0,0.00019885,2]
[359066398,1745688646963,-400.0,0.00019885,2]
[359066399,1745688646972,-722.9,0.00019885,2]
[359066400,1745688646981,-663.23,0.00019885,2]
[359066401,1745688646991,-673.32,0.00019885,2]
[359066402,1745688646999,-400.0,0.00019885,2]
[359066403,1745688647009,-400.0,0.00019885,2]
[359066404,1745688647020,-512.87,0.00019885,2]
[359066405,1745688647031,-400.0,0.00019885,2]
[359066406,1745688647042,-400.0,0.00019885,2]
[359066407,1745688647052,-479.4188343,0.00019885,2]
[359066408,1745688647063,-400.0,0.00019885,2]
[359066409,1745688647072,-858.79,0.00019885,2]
[359066410,1745688647082,-471.62130063,0.00019885,2]
[359066411,1745688647091,-400.0,0.00019885,2]
[359066412,1745688647103,-300.0,0.00019885,2]
[359066413,1745688647114,-400.0,0.00019885,2]
[359066414,1745688647124,-300.0,0.00019885,2]
[359066415,1745688647133,-342.68865527,0.00019885,2]
[359066416,1745688647143,-400.0,0.00019885,2]
[359066417,1745688647153,-400.0,0.00019885,2]
[359066418,1745688647162,-300.0,0.00019885,2]
[359066419,1745688647171,-85.49640196,0.00019885,2]
[359066420,1745688647568,-252.06649242,0.00019885,2]
[359066421,1745688647580,-408.52710562,0.00019885,2]
[359066422,1745688647590,-400.0,0.00019885,2]
[359066423,1745688647599,-208.45221972,0.00019885,2]
[359066424,1745688647637,-97.60013193,0.00019885,2]
[359066425,1745688647647,-370.19358807,0.00019885,2]
[359066426,1745688648123,-0.0101945,0.0001988,2]
[359066427,1745688648321,-97.59609953,0.0001988,2]
[359066428,1745688649133,-217.96550278,0.0001988,2]
[359066429,1745688649146,-184.69820319,0.0001988,2]
[359066430,1745688649156,-230.06641193,0.00019885,2]
[359066431,1745688649166,-544.21,0.00019885,2]
[359066432,1745688649175,-400.0,0.00019885,2]
[359066433,1745688649186,-400.0,0.00019885,2]
[359066434,1745688649200,-300.0,0.00019885,2]
[359066435,1745688649210,-400.0,0.00019885,2]
[359066436,1745688649219,-1006.21,0.00019885,2]
[359066437,1745688649230,-492.27,0.00019885,2]
[359066438,1745688649241,-434.83,0.00019885,2]
[359066439,1745688649251,-400.0,0.00019885,2]
[359066440,1745688649260,-591.24,0.00019885,2]
[359066441,1745688649270,-526.37,0.00019885,2]
[359066442,1745688649280,-606.93,0.00019885,2]
[359066443,1745688649290,-400.0,0.00019885,2]
[359066444,1745688649300,-754.15,0.00019885,2]
[359066445,1745688649310,-300.0,0.00019885,2]
[359066446,1745688649320,-400.0,0.00019885,2]
[359066447,1745688649330,-400.0,0.00019885,2]
[359066448,1745688649340,-731.47,0.00019885,2]
[359066449,1745688649350,-300.0,0.00019885,2]
[359066450,1745688649360,-400.0,0.00019885,2]
[359066451,1745688649370,-490.28,0.00019885,2]
[359066452,1745688649380,-429.34,0.00019885,2]
[359066453,1745688649389,-400.0,0.00019885,2]
[359066454,1745688649399,-400.0,0.00019885,2]
[359066455,1745688649408,-400.0,0.00019885,2]
[359066456,1745688649418,-300.0,0.00019885,2]
[359066457,1745688649428,-400.0,0.00019885,2]
[359066458,1745688649437,-400.0,0.00019885,2]
[359066459,1745688649447,-300.0,0.00019885,2]
[359066460,1745688649456,-400.0,0.00019885,2]
[359066461,1745688649467,-400.0,0.00019885,2]
[359066462,1745688649478,-400.0,0.00019885,2]
[359066463,1745688649489,-400.0,0.00019885,2]
[359066464,1745688649499,-400.0,0.00019885,2]
[359066465,1745688649508,-400.0,0.00019885,2]
[359066466,1745688649518,-400.0,0.00019885,2]
[359066467,1745688649527,-424.43,0.00019885,2]
[359066468,1745688649537,-400.0,0.00019885,2]
[359066469,1745688649547,-400.0,0.00019885,2]
[359066470,1745688649557,-687.46,0.00019885,2]
[359066471,1745688649566,-1760.91,0.00019885,2]
[359066472,1745688649576,-400.0,0.00019885,2]
[359066473,1745688649586,-423.19,0.00019885,2]
[359066474,1745688649596,-186960.43688788,0.00019886,2]
[359066475,1745688650097,-472625.5118141,0.00019886,2]
[359066476,1745688652055,-151.47013425,0.0001988,2]
[359066477,1745688652887,-248.52986575,0.0001988,2]
[359066478,1745688652898,-248.4592557,0.00019886,2]
[359066479,1745688652910,-3160.0,0.00019886,2]
[359066480,1745688653494,-149.42922242,0.00019886,2]
[359066481,1745688893502,283.55617484,0.0003,30]
[359066482,1745688945936,476.57,0.00016959,2]
[359066483,1745688946175,476.57,0.00019223,2]
[359066484,1745689041031,304000.0,0.0003,120]
[359066485,1745689206094,25485.17,0.00019,2]
[359066486,1745689207847,25485.17,0.00019,2]
[359066487,1745689209608,152.94209695,0.00019,2]
[359066488,1745689209638,25332.22790305,0.00019,2]
[359066489,1745689211333,25485.17,0.00019,2]
[359066490,1745689251574,1000.0,0.0001885,2]
[359066491,1745689330678,155.21,0.0001885,2]
[359066492,1745689420723,250.0,0.00017,2]
[359066493,1745689421804,300.0,0.00019,2]
[359066494,1745689506797,158.21,0.00018851,2]
[359066532,1745689832406,-166.66,0.00019418,2]
[359066533,1745689832417,-200.0,0.00019453,2]
[359066534,1745689832427,-239.0401952,0.00019488,2]
[359066535,1745689832479,-10.9598048,0.00019488,2]
[359066536,1745689832489,-200.0,0.0001955,2]
[359066537,1745689832498,-314.0,0.000196,2]
[359066538,1745689832508,-154.82551,0.000197,2]
[359066539,1745689832518,-150.0,0.00019753,2]
[359066540,1745689832528,-215.86454045,0.00019784,2]
[359066541,1745689832540,-640.38623628,0.00019784,2]
[359066542,1745689832549,-209.68475943,0.00019786,2]
[359066543,1745689832559,-1200.0,0.00019786,2]
[359066544,1745689832569,-300.0,0.00019786,2]
[359066545,1745689832579,-640.38623627,0.00019797,2]
[359066546,1745689832589,-215.86454038,0.00019801,2]
[359066547,1745689832599,-640.38623627,0.0001981,2]
[359066548,1745689832609,-215.86454038,0.00019817,2]
[359066549,1745689832619,-640.38623627,0.00019823,2]
[359066550,1745689832628,-215.86454038,0.00019834,2]
[359066551,1745689832639,-640.38623627,0.00019836,2]
[359066552,1745689832648,-2000.0,0.0001984,2]
[359066594,1745689832993,-640.38623627,0.00019848,2]
[359066599,1745689833031,-57.33254655,0.0001985,2]
[359066654,1745689838334,-158.53199383,0.0001985,2]
[359066655,1745689838346,-640.38623627,0.00019861,2]
[359066656,1745689838358,-215.86454038,0.00019867,2]
[359066657,1745689838367,-207.4,0.00019867,2]
[359066658,1745689838378,-500.0,0.00019873,2]
[359066659,1745689838388,-640.38623627,0.00019874,2]
[359066660,1745689838399,-455.68,0.00019877,2]
[359066661,1745689838411,-400.0,0.00019877,2]
[359066662,1745689838423,-51.78918432,0.00019877,2]
[359066663,1745689838455,-446.66081568,0.00019877,2]
[359066664,1745689838466,-400.0,0.00019877,2]
[359066665,1745689838479,-400.0,0.00019877,2]
[359066666,1745689838489,-287.92660259,0.00019877,2]
[359066667,1745689838500,-456.95,0.00019878,2]
[359066668,1745689838510,-400.0,0.00019878,2]
[359066669,1745689838521,-608.08,0.00019878,2]
[359066670,1745689838531,-414.69,0.00019878,2]
[359066671,1745689838542,-400.0,0.00019878,2]
[359066672,1745689838557,-120.36015789,0.00019878,2]
[359066741,1745689840786,-279.63984211,0.00019878,2]
[359066742,1745689840797,-400.0,0.00019878,2]
[359066743,1745689840807,-400.0,0.00019878,2]
[359066744,1745689840817,-1359.17,0.00019878,2]
[359066745,1745689840827,-400.0,0.00019878,2]
[359066746,1745689840837,-520.59,0.00019878,2]
[359066747,1745689840847,-400.0,0.00019878,2]
[359066748,1745689840856,-417.2,0.00019878,2]
[359066749,1745689840866,-663.46,0.00019878,2]
[359066750,1745689840875,-559.58,0.00019878,2]
[359066751,1745689840885,-476.33,0.00019878,2]
[359066752,1745689840894,-623.71,0.00019878,2]
[359066753,1745689840904,-665.87,0.00019878,2]
[359066754,1745689840914,-609.32,0.00019878,2]
[359066755,1745689840924,-406.89,0.00019878,2]
[359066756,1745689840936,-465.92,0.00019878,2]
[359066757,1745689840947,-400.0,0.00019878,2]
[359066759,1745689840956,-1465.493185,0.00019878,2]
[359066760,1745689840966,-430.54,0.00019878,2]
[359066761,1745689840981,-445.9,0.00019878,2]
[359066762,1745689840991,-678.78,0.00019878,2]
[359066764,1745689841000,-400.0,0.00019878,2]
[359066765,1745689841010,-707.86,0.00019878,2]
[359066766,1745689841020,-503.59,0.00019878,2]
[359066767,1745689841031,-158.931183,0.00019878,2]
[359066768,1745689841041,-400.0,0.00019878,2]
[359066769,1745689841052,-400.0,0.00019878,2]
[359066770,1745689841062,-156.655325,0.00019878,2]
[359066771,1745689841072,-422.0235213,0.00019878,2]
[359066772,1745689841081,-435.46,0.00019878,2]
[359066773,1745689841092,-556.68,0.00019878,2]
[359066774,1745689841101,-551.6,0.00019878,2]
[359066775,1745689841111,-1110.23,0.00019878,2]
[359066776,1745689841121,-400.0,0.00019878,2]
[359066777,1745689841132,-400.0,0.00019878,2]
[359066778,1745689841141,-495.14767207,0.00019878,2]
[359066779,1745689841152,-500.0,0.00019878,2]
[359066780,1745689841161,-991.63,0.00019878,2]
[359066781,1745689841171,-400.0,0.00019878,2]
[359066782,1745689841180,-854.23,0.00019878,2]
[359066783,1745689841190,-540.21,0.00019878,2]
[359066784,1745689841200,-444.69260139,0.00019878,2]
[359066785,1745689841209,-756.53,0.00019878,2]
[359066786,1745689841218,-876.35,0.00019878,2]
[359066787,1745689841231,-400.0,0.00019878,2]
[359066788,1745689841241,-507.51,0.00019878,2]
[359066789,1745689841252,-400.0,0.00019878,2]
[359066790,1745689841262,-400.0,0.00019878,2]
[359066791,1745689841271,-617.54,0.00019878,2]
[359066792,1745689841282,-404.38,0.00019878,2]
[359066793,1745689841292,-400.0,0.00019878,2]
[359066794,1745689841302,-400.0,0.00019878,2]
[359066795,1745689841311,-400.0,0.00019878,2]
[359066796,1745689841321,-200.0,0.00019878,2]
[359066797,1745689841331,-459.68,0.00019878,2]
[359066798,1745689841340,-400.0,0.00019878,2]
[359066799,1745689841349,-400.0,0.00019878,2]
[359066800,1745689841359,-683.86,0.00019878,2]
[359066801,1745689841368,-400.0,0.00019878,2]
[359066802,1745689841378,-400.0,0.00019878,2]
[359066803,1745689841387,-400.0,0.00019878,2]
[359066804,1745689841396,-400.0,0.00019878,2]
[359066805,1745689841405,-400.0,0.00019878,2]
[359066806,1745689841422,-536.42,0.00019878,2]
[359066807,1745689841432,-443.52,0.00019878,2]
[359066808,1745689841442,-400.0,0.00019878,2]
[359066809,1745689841452,-400.0,0.00019878,2]
[359066810,1745689841462,-400.0,0.00019878,2]
[359066811,1745689841472,-400.0,0.00019878,2]
[359066812,1745689841481,-400.0,0.00019878,2]
[359066813,1745689841491,-400.0,0.00019878,2]
[359066814,1745689841501,-400.0,0.00019878,2]
[359066815,1745689841511,-663.14,0.00019878,2]
[359066816,1745689841521,-864.1,0.00019878,2]
[359066817,1745689841531,-376.0449316,0.00019878,2]
[359066818,1745689841541,-620.93,0.00019878,2]
[359066819,1745689841551,-400.0,0.00019878,2]
[359066820,1745689841560,-758.25,0.00019878,2]
[359066821,1745689841570,-400.0,0.00019878,2]
[359066822,1745689841580,-400.0,0.00019878,2]
[359066823,1745689841589,-400.0,0.00019878,2]
[359066824,1745689841599,-797.94,0.00019878,2]
[359066825,1745689841609,-528.54,0.00019878,2]
[359066826,1745689841618,-400.0,0.00019878,2]
[359066827,1745689841628,-586.38,0.00019878,2]
[359066828,1745689841638,-400.0,0.00019878,2]
[359066829,1745689841648,-400.0,0.00019878,2]
[359066830,1745689841658,-400.0,0.00019878,2]
[359066831,1745689841668,-856.35,0.00019878,2]
[359066832,1745689841680,-400.0,0.00019878,2]
[359066833,1745689841692,-400.0,0.00019878,2]
[359066834,1745689841702,-737.3,0.00019878,2]
[359066835,1745689841714,-400.0,0.00019878,2]
[359066836,1745689841724,-400.0,0.00019878,2]
[359066837,1745689841735,-400.0,0.00019878,2]
[359066838,1745689841746,-400.0,0.00019878,2]
[359066839,1745689841756,-400.0,0.00019878,2]
[359066840,1745689841766,-400.0,0.00019878,2]
[359066841,1745689841776,-400.0,0.00019878,2]
[359066842,1745689841788,-400.0,0.00019878,2]
[359066843,1745689841799,-514.01,0.00019878,2]
[359066844,1745689841810,-250.0,0.00019878,2]
[359066845,1745689841820,-522.45,0.00019878,2]
[359066846,1745689841830,-400.0,0.00019878,2]
[359066847,1745689841842,-576.5,0.00019878,2]
[359066848,1745689841852,-573.15,0.00019878,2]
[359066849,1745689841867,-400.0,0.00019878,2]
[359066850,1745689841876,-400.0,0.00019878,2]
[359066851,1745689841887,-400.0,0.00019878,2]
[359066852,1745689841898,-400.0,0.00019878,2]
[359066853,1745689841909,-400.0,0.00019878,2]
[359066854,1745689841919,-400.0,0.00019878,2]
[359066855,1745689841929,-400.0,0.00019878,2]
[359066856,1745689841939,-400.0,0.00019878,2]
[359066857,1745689841952,-400.0,0.00019878,2]
[359066858,1745689841961,-679.4,0.00019878,2]
[359066859,1745689841971,-457.72,0.00019878,2]
[359066860,1745689841981,-400.0,0.00019878,2]
[359066861,1745689841990,-470.38,0.00019878,2]
[359066862,1745689842000,-400.0,0.00019878,2]
[359066863,1745689842010,-400.0,0.00019878,2]
[359066864,1745689842019,-686.75,0.00019878,2]
[359066865,1745689842029,-400.0,0.00019878,2]
[359066866,1745689842038,-400.0,0.00019878,2]
[359066867,1745689842048,-708.08,0.00019878,2]
[359066868,1745689842058,-400.0,0.00019878,2]
[359066869,1745689842068,-2957.78,0.00019878,2]
[359066870,1745689842077,-1143.76,0.00019878,2]
[359066871,1745689842086,-400.0,0.00019878,2]
[359066872,1745689842096,-1095.54,0.00019878,2]
[359066873,1745689842106,-481.66,0.00019878,2]
[359066874,1745689842115,-400.0,0.00019878,2]
[359066875,1745689842125,-452.27,0.00019878,2]
[359066876,1745689842135,-604.28,0.00019878,2]
[359066877,1745689842144,-400.0,0.00019878,2]
[359066878,1745689842154,-400.0,0.00019878,2]
[359066879,1745689842165,-416.84,0.00019878,2]
[359066880,1745689842174,-492.87790255,0.00019878,2]
[359066881,1745689842184,-400.0,0.00019878,2]
[359066882,1745689842194,-400.0,0.00019878,2]
[359066883,1745689842204,-797.75,0.00019878,2]
[359066884,1745689842214,-982.76,0.00019878,2]
[359066885,1745689842223,-650.21,0.00019878,2]
[359066886,1745689842233,-400.0,0.00019878,2]
[359066887,1745689842243,-400.0,0.00019878,2]
[359066888,1745689842252,-508.87,0.00019878,2]
[359066889,1745689842262,-400.0,0.00019878,2]
[359066890,1745689842271,-400.0,0.00019878,2]
[359066891,1745689842281,-400.0,0.00019878,2]
[359066892,1745689842292,-1475.33,0.00019878,2]
[359066893,1745689842303,-204.27036496,0.00019878,2]
[359066894,1745689842312,-620.38,0.00019878,2]
[359066895,1745689842322,-400.0,0.00019878,2]
[359066896,1745689842333,-400.0,0.00019878,2]
[359066897,1745689842343,-400.0,0.00019878,2]
[359066898,1745689842353,-431.35,0.00019878,2]
[359066899,1745689842363,-586.31,0.00019878,2]
[359066900,1745689842373,-400.0,0.00019878,2]
[359066901,1745689842383,-400.0,0.00019878,2]
[359066902,1745689842394,-415.81,0.00019878,2]
[359066903,1745689842405,-400.0,0.00019878,2]
[359066904,1745689842415,-1179.6,0.00019878,2]
[359066905,1745689842425,-400.0,0.00019878,2]
[359066906,1745689842434,-400.0,0.00019878,2]
[359066907,1745689842444,-848.46,0.00019878,2]
[359066908,1745689842454,-400.0,0.00019878,2]
[359066909,1745689842464,-400.0,0.00019878,2]
[359066910,1745689842473,-1134.18,0.00019878,2]
[359066911,1745689842483,-501.81,0.00019878,2]
[359066912,1745689842492,-1168.14,0.00019878,2]
[359066913,1745689842502,-567.85,0.00019878,2]
[359066914,1745689842512,-400.0,0.00019878,2]
[359066915,1745689842522,-400.0,0.00019878,2]
[359066916,1745689842532,-400.0,0.00019878,2]
[359066917,1745689842541,-400.0,0.00019878,2]
[359066918,1745689842551,-400.0,0.00019878,2]
[359066919,1745689842560,-509.11,0.00019878,2]
[359066920,1745689842571,-968.02,0.00019878,2]
[359066921,1745689842582,-400.0,0.00019878,2]
[359066922,1745689842592,-428.64,0.00019878,2]
[359066923,1745689842602,-3341.84,0.00019878,2]
[359066924,1745689842612,-400.0,0.00019878,2]
[359066925,1745689842622,-400.0,0.00019878,2]
[359066926,1745689842631,-400.0,0.00019878,2]
[359066927,1745689842641,-409.27,0.00019878,2]
[359066928,1745689842650,-300.0,0.00019878,2]
[359066929,1745689842660,-468.38,0.00019878,2]
[359066930,1745689842669,-757.11,0.00019878,2]
[359066931,1745689842680,-1883.41,0.00019878,2]
[359066932,1745689842692,-966.86,0.00019878,2]
[359066933,1745689842702,-400.0,0.00019878,2]
[359066934,1745689842712,-718.31,0.00019878,2]
[359066935,1745689842723,-566.95,0.00019878,2]
[359066936,1745689842733,-1090.98,0.00019878,2]
[359066937,1745689842743,-613.68,0.00019878,2]
[359066938,1745689842753,-685.25,0.00019878,2]
[359066939,1745689842763,-400.0,0.00019878,2]
[359066940,1745689842773,-579.92,0.00019878,2]
[359066941,1745689842783,-601.45,0.00019878,2]
[359066942,1745689842793,-1093.16,0.00019878,2]
[359066943,1745689842803,-423.74,0.00019878,2]
[359066944,1745689842813,-400.0,0.00019878,2]
[359066945,1745689842823,-831.21,0.00019878,2]
[359066946,1745689842834,-572.56,0.00019878,2]
[359066947,1745689842843,-762.62,0.00019878,2]
[359066948,1745689842853,-400.0,0.00019878,2]
[359066949,1745689842864,-851.1,0.00019878,2]
[359066950,1745689842874,-689.85,0.00019878,2]
[359066951,1745689842885,-400.0,0.00019878,2]
[359066952,1745689842895,-729.66,0.00019878,2]
[359066953,1745689842904,-252.92410578,0.00019878,2]
[359066954,1745689842914,-90953.86086824,0.00019878,2]
[359066976,1745689914973,3100.0,0.00019,6]
[359066977,1745689917272,6200.0,0.000191,6]
[359066978,1745689919240,9300.0,0.000192,7]
[359066979,1745689921373,12500.0,0.000193,7]
[359066980,1745689923456,15600.0,0.000194,7]
[359066981,1745689925575,3100.0,0.000195,7]
[359066982,1745689927745,3100.0,0.000196,7]
[359066983,1745689930197,3100.0,0.000197,7]
[359066984,1745689931959,3100.0,0.000198,7]
[359066985,1745689934054,3522.0,0.000199,7]
[359066986,1745689949974,2000.0,0.00019,6]
[359066987,1745689952085,4000.0,0.000191,6]
[359066988,1745689954198,6000.0,0.000192,7]
[359066989,1745689956338,8000.0,0.000193,7]
[359066990,1745689958498,3856.81711641,0.000194,7]
[359066991,1745689958527,6143.18288359,0.000194,7]
[359066992,1745689960608,2000.0,0.000195,7]
[359066993,1745689962702,2000.0,0.000196,7]
[359066994,1745689964897,2000.0,0.000197,7]
[359066995,1745689966990,2000.0,0.000198,7]
[359066996,1745689969072,2200.0,0.000199,7]
[359066997,1745690249622,452.93,0.00016945,2]
[359066998,1745690249849,452.93,0.00019209,2]
[359067158,1745690441697,250.0,0.00019239,2]
[359067170,1745690595098,844.14,0.00018851,2]
[359067171,1745690595125,155.86,0.00018851,2]
[359067172,1745690602151,-158.55,0.00019443,2]
[359067187,1745690791726,172.14,0.00013699,2]
[359067188,1745690792043,172.14,0.00013699,2]
[359067189,1745690792388,172.14,0.00013699,2]
[359067190,1745690792754,172.15742589,0.00013699,2]
[359067206,1745690996638,158.21,0.00018852,2]
[359067207,1745691003137,2000.0,0.0002,4]
[359067248,1745691037592,-200.0,0.00019638,2]
[359067249,1745691037603,-250.0,0.00019652,2]
[359067250,1745691037613,-200.0,0.00019713,2]
[359067251,1745691037622,-153.1179488,0.00019773,2]
[359067252,1745691037632,-973.69755376,0.00019777,2]
[359067253,1745691037642,-153.11794876,0.00019791,2]
[359067254,1745691037652,-300.0,0.00019792,2]
[359067255,1745691037663,-406.01675568,0.00019793,2]
[359067256,1745691037673,-2269.73898136,0.00019793,2]
[359067257,1745691037684,-1200.0,0.00019793,2]
[359067258,1745691037695,-300.0,0.00019793,2]
[359067259,1745691037708,-973.69755373,0.00019795,2]
[359067260,1745691037718,-2000.0,0.000198,2]
[359067261,1745691037729,-153.11794876,0.00019809,2]
[359067262,1745691037739,-973.69755373,0.00019812,2]
[359067263,1745691037750,-153.11794876,0.00019827,2]
[359067264,1745691037761,-973.69755373,0.0001983,2]
[359067265,1745691037771,-2000.0,0.0001984,2]
[359067266,1745691037782,-153.11794876,0.00019846,2]
[359067267,1745691037792,-406.01675566,0.00019847,2]
[359067268,1745691037802,-2269.73898134,0.00019847,2]
[359067269,1745691037813,-973.69755373,0.00019847,2]
[359067270,1745691037825,-727.71783335,0.00019862,2]
[359067271,1745691037835,-1000.0,0.00019862,2]
[359067272,1745691037846,-500.0,0.00019862,2]
[359067273,1745691037857,-351.43634205,0.00019862,2]
[359067274,1745691037870,-174.81935069,0.00019862,2]
[359067275,1745691037881,-1994.74636995,0.00019862,2]
[359067276,1745691037892,-37071.0,0.00019863,2]
[359067277,1745691037908,-190.73084684,0.00019863,2]
[359067278,1745691037921,-153.11794876,0.00019864,2]
[359067279,1745691037931,-973.69755373,0.00019865,2]
[359067280,1745691037942,-207.4,0.00019866,2]
[359067281,1745691037952,-234.47,0.00019867,2]
[359067282,1745691037963,-234.47,0.00019867,2]
[359067283,1745691037976,-234.47,0.00019867,2]
[359067284,1745691037987,-234.47,0.00019867,2]
[359067285,1745691037998,-234.47,0.00019867,2]